fUST/lending_fUST_20240604
["ID","MTS","AMOUNT","RATE_DAILY","PERIOD"]
[328538264,1717507641727,-500.0,0.00021917,2]
[328538265,1717507641747,-500.0,0.00021917,2]
[328538266,1717507641768,-418.76096871,0.00021917,2]
[328538267,1717507641788,-500.0,0.00021917,2]
[328538268,1717507641808,-500.0,0.00021917,2]
[328538269,1717507641828,-500.7,0.00021917,2]
[328538270,1717507641849,-3646.37,0.00021917,2]
[328538271,1717507641870,-1151.92,0.00021917,2]
[328538272,1717507641890,-500.0,0.00021917,2]
[328538273,1717507641909,-500.0,0.00021917,2]
[328538274,1717507641929,-537.99,0.00021917,2]
[328538275,1717507641950,-500.0,0.00021917,2]
[328538276,1717507641971,-500.0,0.00021917,2]
[328538277,1717507641991,-500.0,0.00021917,2]
[328538278,1717507642011,-4292.3,0.00021917,2]
[328538279,1717507642033,-978.27,0.00021917,2]
[328538280,1717507642053,-823.79,0.00021917,2]
[328538281,1717507642074,-579.8,0.00021917,2]
[328538282,1717507642095,-500.0,0.00021917,2]
[328538283,1717507642116,-2360.66,0.00021917,2]
[328538284,1717507642136,-500.0,0.00021917,2]
[328538285,1717507642156,-500.0,0.00021917,2]
[328538286,1717507642176,-500.0,0.00021917,2]
[328538287,1717507642196,-524.39,0.00021917,2]
[328538288,1717507642218,-500.0,0.00021917,2]
[328538289,1717507642239,-433.65,0.00021917,2]
[328538290,1717507642259,-500.0,0.00021917,2]
[328538291,1717507642280,-1800.72,0.00021917,2]
[328538292,1717507642300,-500.0,0.00021917,2]
[328538293,1717507642322,-1028.45,0.00021917,2]
[328538294,1717507642345,-500.0,0.00021917,2]
[328538295,1717507642365,-500.0,0.00021917,2]
[328538296,1717507642386,-1008.49,0.00021917,2]
[328538297,1717507642411,-17165.36025324,0.00022191,7]
[328538298,1717507642432,-500.0,0.00022191,2]
[328538299,1717507642454,-500.0,0.00022191,2]
[328538300,1717507642476,-534.86628068,0.00022191,2]
[328538301,1717507642496,-527.77848377,0.00022191,2]
[328538302,1717507642517,-500.45,0.00022191,2]
[328538303,1717507642538,-500.0,0.00022191,2]
[328538304,1717507642558,-500.0,0.00022191,2]
[328538305,1717507642579,-500.0,0.00022191,2]
[328538306,1717507642605,-500.0,0.00022191,2]
[328538307,1717507642627,-431.31799225,0.00022191,2]
[328538308,1717507642648,-500.0,0.00022191,2]
[328538309,1717507642671,-579.73,0.00022191,2]
[328538310,1717507642692,-500.0,0.00022191,2]
[328538311,1717507642713,-500.0,0.00022191,2]
[328538312,1717507642732,-500.0,0.00022191,2]
[328538313,1717507642753,-500.0,0.00022191,2]
[328538314,1717507642773,-500.7,0.00022191,2]
[328538315,1717507642794,-3646.37,0.00022191,2]
[328538316,1717507642814,-1151.92,0.00022191,2]
[328538317,1717507642834,-500.0,0.00022191,2]
[328538318,1717507642855,-500.0,0.00022191,2]
[328538319,1717507642875,-537.99,0.00022191,2]
[328538320,1717507642896,-500.0,0.00022191,2]
[328538321,1717507642917,-360.7650612,0.00022191,2]
[328538322,1717507642940,-500.0,0.00022191,2]
[328538323,1717507642963,-4292.3,0.00022191,2]
[328538324,1717507642985,-978.27,0.00022191,2]
[328538325,1717507643004,-823.79,0.00022191,2]
[328538326,1717507643026,-579.8,0.00022191,2]
[328538327,1717507643046,-500.0,0.00022191,2]
[328538328,1717507643067,-2360.66,0.00022191,2]
[328538329,1717507643087,-482.68673851,0.00022191,2]
[328538330,1717507643107,-500.0,0.00022191,2]
[328538331,1717507643126,-500.0,0.00022191,2]
[328538332,1717507643146,-500.0,0.00022191,2]
[328538333,1717507643165,-500.0,0.00022191,2]
[328538334,1717507643186,-1800.72,0.00022191,2]
[328538335,1717507643208,-500.0,0.00022191,2]
[328538336,1717507643229,-1028.45,0.00022191,2]
[328538337,1717507643250,-256.17288975,0.00022191,2]
[328538338,1717507643270,-500.0,0.00022191,2]
[328538339,1717507643290,-1008.49,0.00022191,2]
[328538340,1717507643310,-500.0,0.00022465,2]
[328538341,1717507643330,-500.0,0.00022465,2]
[328538342,1717507643350,-500.45,0.00022465,2]
[328538343,1717507643369,-500.0,0.00022465,2]
[328538344,1717507643389,-500.0,0.00022465,2]
[328538345,1717507643410,-500.0,0.00022465,2]
[328538346,1717507643430,-500.0,0.00022465,2]
[328538347,1717507643454,-500.0,0.00022465,2]
[328538348,1717507643474,-579.73,0.00022465,2]
[328538349,1717507643493,-501.53159937,0.00022465,2]
[328538350,1717507643513,-500.0,0.00022465,2]
[328538351,1717507643534,-500.0,0.00022465,2]
[328538352,1717507643554,-500.0,0.00022465,2]
[328538353,1717507643574,-500.7,0.00022465,2]
[328538354,1717507643600,-3646.37,0.00022465,2]
[328538355,1717507643621,-1151.92,0.00022465,2]
[328538356,1717507643641,-500.0,0.00022465,2]
[328538357,1717507643662,-500.0,0.00022465,2]
[328538358,1717507643686,-537.99,0.00022465,2]
[328538359,1717507643710,-500.0,0.00022465,2]
[328538360,1717507643730,-500.0,0.00022465,2]
[328538361,1717507643751,-4292.3,0.00022465,2]
[328538362,1717507643772,-978.27,0.00022465,2]
[328538363,1717507643888,-823.79,0.00022465,2]
[328538364,1717507643912,-579.8,0.00022465,2]
[328538365,1717507643934,-500.0,0.00022465,2]
[328538366,1717507643958,-2360.66,0.00022465,2]
[328538367,1717507643978,-500.0,0.00022465,2]
[328538368,1717507643999,-500.0,0.00022465,2]
[328538369,1717507644020,-500.0,0.00022465,2]
[328538370,1717507644042,-597.12,0.00022465,2]
[328538371,1717507644064,-1800.72,0.00022465,2]
[328538372,1717507644087,-500.0,0.00022465,2]
[328538373,1717507644108,-1028.45,0.00022465,2]
[328538374,1717507644128,-500.0,0.00022465,2]
[328538375,1717507644154,-1008.49,0.00022465,2]
[328538376,1717507644174,-500.0,0.00022739,2]
[328538377,1717507644194,-500.0,0.00022739,2]
[328538378,1717507644215,-500.45,0.00022739,2]
[328538379,1717507644236,-500.0,0.00022739,2]
[328538380,1717507644256,-500.0,0.00022739,2]
[328538381,1717507644277,-500.0,0.00022739,2]
[328538382,1717507644297,-500.0,0.00022739,2]
[328538383,1717507644317,-500.0,0.00022739,2]
[328538384,1717507644338,-579.73,0.00022739,2]
[328538385,1717507644358,-500.0,0.00022739,2]
[328538386,1717507644379,-219.42784263,0.00022739,2]
[328538387,1717507644399,-500.0,0.00022739,2]
[328538388,1717507644432,-500.7,0.00022739,2]
[328538389,1717507644459,-3646.37,0.00022739,2]
[328538390,1717507644484,-1151.92,0.00022739,2]
[328538391,1717507644506,-500.0,0.00022739,2]
[328538392,1717507644527,-500.0,0.00022739,2]
[328538393,1717507644551,-537.99,0.00022739,2]
[328538394,1717507644573,-251.05,0.00022739,2]
[328538395,1717507644600,-500.0,0.00022739,2]
[328538396,1717507644623,-4292.3,0.00022739,2]
[328538397,1717507644647,-978.27,0.00022739,2]
[328538398,1717507644668,-823.79,0.00022739,2]
[328538399,1717507644692,-579.8,0.00022739,2]
[328538400,1717507644714,-500.0,0.00022739,2]
[328538401,1717507644736,-2360.66,0.00022739,2]
[328538402,1717507644759,-500.0,0.00022739,2]
[328538403,1717507644780,-500.0,0.00022739,2]
[328538404,1717507644802,-500.0,0.00022739,2]
[328538405,1717507644825,-1800.72,0.00022739,2]
[328538406,1717507644846,-500.0,0.00022739,2]
[328538407,1717507644868,-1028.45,0.00022739,2]
[328538408,1717507644889,-500.0,0.00022739,2]
[328538409,1717507644910,-1008.49,0.00022739,2]
[328538410,1717507644931,-500.0,0.00023013,2]
[328538411,1717507644951,-500.0,0.00023013,2]
[328538412,1717507644974,-500.45,0.00023013,2]
[328538413,1717507644995,-500.0,0.00023013,2]
[328538414,1717507645016,-500.0,0.00023013,2]
[328538415,1717507645038,-500.0,0.00023013,2]
[328538416,1717507645058,-500.0,0.00023013,2]
[328538417,1717507645079,-500.0,0.00023013,2]
[328538418,1717507645101,-579.73,0.00023013,2]
[328538419,1717507645122,-500.0,0.00023013,2]
[328538420,1717507645142,-500.0,0.00023013,2]
[328538421,1717507645162,-500.7,0.00023013,2]
[328538422,1717507645183,-3646.37,0.00023013,2]
[328538423,1717507645204,-1151.92,0.00023013,2]
[328538424,1717507645223,-500.0,0.00023013,2]
[328538425,1717507645243,-500.0,0.00023013,2]
[328538426,1717507645264,-537.99,0.00023013,2]
[328538427,1717507645285,-500.0,0.00023013,2]
[328538428,1717507645306,-4292.3,0.00023013,2]
[328538429,1717507645327,-978.27,0.00023013,2]
[328538430,1717507645346,-823.79,0.00023013,2]
[328538431,1717507645369,-579.8,0.00023013,2]
[328538432,1717507645390,-500.0,0.00023013,2]
[328538433,1717507645413,-2360.66,0.00023013,2]
[328538434,1717507645433,-500.0,0.00023013,2]
[328538435,1717507645452,-500.0,0.00023013,2]
[328538436,1717507645474,-500.0,0.00023013,2]
[328538437,1717507645498,-1800.72,0.00023013,2]
[328538438,1717507645518,-500.0,0.00023013,2]
[328538439,1717507645539,-1028.45,0.00023013,2]
[328538440,1717507645559,-500.0,0.00023013,2]
[328538441,1717507645581,-1008.49,0.00023013,2]
[328538442,1717507645605,-3068.80547799,0.00023285,2]
[328538443,1717507645625,-187.12639134,0.00023285,2]
[328538444,1717507645646,-1225.10827722,0.00023286,2]
[328538445,1717507645666,-1310.94355062,0.00023286,2]
[328538446,1717507645691,-500.0,0.00023287,2]
[328538447,1717507645713,-500.0,0.00023287,2]
[328538448,1717507645734,-500.45,0.00023287,2]
[328538449,1717507645753,-500.0,0.00023287,2]
[328538450,1717507645774,-500.0,0.00023287,2]
[328538451,1717507645795,-500.0,0.00023287,2]
[328538452,1717507645816,-500.0,0.00023287,2]
[328538453,1717507645837,-500.0,0.00023287,2]
[328538454,1717507645857,-579.73,0.00023287,2]
[328538455,1717507645877,-500.0,0.00023287,2]
[328538456,1717507645897,-500.0,0.00023287,2]
[328538457,1717507645918,-500.7,0.00023287,2]
[328538458,1717507645940,-3646.37,0.00023287,2]
[328538459,1717507645964,-1151.92,0.00023287,2]
[328538460,1717507645983,-500.0,0.00023287,2]
[328538461,1717507646004,-500.0,0.00023287,2]
[328538462,1717507646024,-537.99,0.00023287,2]
[328538463,1717507646045,-500.0,0.00023287,2]
[328538464,1717507646068,-4292.3,0.00023287,2]
[328538465,1717507646091,-978.27,0.00023287,2]
[328538466,1717507646110,-823.79,0.00023287,2]
[328538467,1717507646131,-579.8,0.00023287,2]
[328538468,1717507646151,-500.0,0.00023287,2]
[328538469,1717507646175,-2360.66,0.00023287,2]
[328538470,1717507646195,-500.0,0.00023287,2]
[328538471,1717507646216,-500.0,0.00023287,2]
[328538472,1717507646235,-151.0,0.00023287,2]
[328538473,1717507646258,-500.0,0.00023287,2]
[328538474,1717507646280,-1800.72,0.00023287,2]
[328538475,1717507646302,-151.0,0.00023287,2]
[328538476,1717507646324,-500.0,0.00023287,2]
[328538477,1717507646346,-1028.45,0.00023287,2]
[328538478,1717507646368,-500.0,0.00023287,2]
[328538479,1717507646390,-1008.49,0.00023287,2]
[328538480,1717507646411,-4234.71341694,0.00023407,2]
[328538481,1717507646430,-6948.73950722,0.00023461,3]
[328538482,1717507646452,-500.0,0.00023561,2]
[328538483,1717507646472,-500.0,0.00023561,2]
[328538484,1717507646494,-500.45,0.00023561,2]
[328538485,1717507646514,-500.0,0.00023561,2]
[328538486,1717507646533,-500.0,0.00023561,2]
[328538487,1717507646554,-500.0,0.00023561,2]
[328538488,1717507646574,-500.0,0.00023561,2]
[328538489,1717507646597,-500.0,0.00023561,2]
[328538490,1717507646618,-579.73,0.00023561,2]
[328538491,1717507646639,-500.0,0.00023561,2]
[328538492,1717507646659,-191.232516,0.00023561,2]
[328538493,1717507646680,-500.0,0.00023561,2]
[328538494,1717507646813,-500.7,0.00023561,2]
[328538495,1717507646834,-3646.37,0.00023561,2]
[328538496,1717507646854,-1151.92,0.00023561,2]
[328538497,1717507646874,-500.0,0.00023561,2]
[328538498,1717507646894,-500.0,0.00023561,2]
[328538499,1717507646914,-537.99,0.00023561,2]
[328538500,1717507646934,-500.0,0.00023561,2]
[328538501,1717507646954,-4292.3,0.00023561,2]
[328538502,1717507646975,-978.27,0.00023561,2]
[328538503,1717507646994,-823.79,0.00023561,2]
[328538504,1717507647014,-579.8,0.00023561,2]
[328538505,1717507647034,-500.0,0.00023561,2]
[328538506,1717507647058,-2360.66,0.00023561,2]
[328538507,1717507647077,-584.46,0.00023561,2]
[328538508,1717507647098,-500.0,0.00023561,2]
[328538509,1717507647118,-500.0,0.00023561,2]
[328538510,1717507647139,-1800.72,0.00023561,2]
[328538511,1717507647159,-500.0,0.00023561,2]
[328538512,1717507647179,-1028.45,0.00023561,2]
[328538513,1717507647201,-500.0,0.00023561,2]
[328538514,1717507647221,-1008.49,0.00023561,2]
[328538515,1717507647241,-48423.29511861,0.0002383,2]
[328538516,1717507647260,-155.07786264,0.00023833,2]
[328538517,1717507647280,-691.54705652,0.00023833,2]
[328538518,1717507647300,-155.19258817,0.00023833,2]
[328538519,1717507647319,-246.14574365,0.00023833,2]
[328538520,1717507647338,-155.24553724,0.00023833,2]
[328538521,1717507647357,-523.07145805,0.00023833,2]
[328538522,1717507647377,-299.46603205,0.00023833,2]
[328538523,1717507647396,-302.4153738,0.00023833,2]
[328538524,1717507647416,-827.63286924,0.00023833,2]
[328538525,1717507647436,-914.58601949,0.00023833,2]
[328538526,1717507647455,-159.02867541,0.00023834,2]
[328538527,1717507647475,-500.0,0.00023835,2]
[328538528,1717507647494,-500.0,0.00023835,2]
[328538529,1717507647514,-500.45,0.00023835,2]
[328538530,1717507647535,-580.19757704,0.00023835,2]
[328538531,1717507647556,-500.0,0.00023835,2]
[328538532,1717507647576,-500.0,0.00023835,2]
[328538533,1717507647600,-527.56692018,0.00023835,2]
[328538534,1717507647620,-500.0,0.00023835,2]
[328538535,1717507647641,-579.73,0.00023835,2]
[328538536,1717507647661,-500.0,0.00023835,2]
[328538537,1717507647683,-500.0,0.00023835,2]
[328538538,1717507647703,-500.7,0.00023835,2]
[328538539,1717507647725,-3646.37,0.00023835,2]
[328538540,1717507647747,-1151.92,0.00023835,2]
[328538541,1717507647766,-500.0,0.00023835,2]
[328538542,1717507647795,-500.0,0.00023835,2]
[328538543,1717507647814,-537.99,0.00023835,2]
[328538544,1717507647834,-500.0,0.00023835,2]
[328538545,1717507647854,-4292.3,0.00023835,2]
[328538546,1717507647875,-978.27,0.00023835,2]
[328538547,1717507647894,-823.79,0.00023835,2]
[328538548,1717507647915,-579.8,0.00023835,2]
[328538549,1717507647936,-500.0,0.00023835,2]
[328538550,1717507647959,-2360.66,0.00023835,2]
[328538551,1717507647980,-500.0,0.00023835,2]
[328538552,1717507648001,-500.0,0.00023835,2]
[328538553,1717507648023,-1800.72,0.00023835,2]
[328538554,1717507648043,-500.0,0.00023835,2]
[328538555,1717507648067,-1028.45,0.00023835,2]
[328538556,1717507648089,-500.0,0.00023835,2]
[328538557,1717507648109,-1008.49,0.00023835,2]
[328538558,1717507648128,-459.50098695,0.00023845,2]
[328538559,1717507648151,-155.17921195,0.00023846,2]
[328538560,1717507648172,-1470.2745826,0.00023846,2]
[328538561,1717507648194,-155.07883069,0.00023846,2]
[328538562,1717507648214,-155.17863782,0.00023846,2]
[328538563,1717507648238,-310.74337664,0.00023846,2]
[328538564,1717507648261,-549.60877585,0.00023846,2]
[328538565,1717507648281,-207.24287142,0.00023846,2]
[328538566,1717507648301,-210.39380729,0.00023846,2]
[328538567,1717507648320,-157.51495545,0.00023846,2]
[328538568,1717507648339,-834.73279999,0.00023846,2]
[328538569,1717507648358,-262.6467043,0.00023847,2]
[328538570,1717507648377,-10626.64848689,0.00023847,2]
[328538571,1717507648397,-3044.71844752,0.00023847,2]
[328538572,1717507648417,-249.13951655,0.00023847,2]
[328538573,1717507648436,-157.91066825,0.00023847,2]
[328538574,1717507648457,-248.27714419,0.00023848,2]
[328538575,1717507648477,-187.08418333,0.00023848,2]
[328538576,1717507648497,-2006.40754201,0.00023848,2]
[328538577,1717507648516,-5821.54932958,0.00023848,2]
[328538578,1717507648538,-154.9690062,0.00023849,2]
[328538579,1717507648560,-23335.47152736,0.0002385,2]
[328538610,1717507835400,-383.7998292,0.0001873,2]
[328538618,1717507835485,-790.3654019,0.0001873,2]
[328538620,1717507835495,-414.78701398,0.00021735,2]
[328538622,1717507835504,-168.2186168,0.00021817,2]
[328538624,1717507835514,-19292.48922816,0.00021916,2]
[328538626,1717507835524,-2430.91,0.00021917,2]
[328538628,1717507835534,-500.0,0.00021917,2]
[328538630,1717507835543,-500.0,0.00021917,2]
[328538632,1717507835552,-767.95,0.00021917,2]
[328538634,1717507835562,-500.0,0.00021917,2]
[328538635,1717507835571,-500.0,0.00021917,2]
[328538636,1717507835586,-2861.53,0.00021917,2]
[328538637,1717507835595,-500.0,0.00021917,2]
[328538638,1717507835604,-652.18,0.00021917,2]
[328538639,1717507835614,-500.0,0.00021917,2]
[328538640,1717507835623,-549.19,0.00021917,2]
[328538641,1717507835633,-500.0,0.00021917,2]
[328538642,1717507835642,-485.35890739,0.00021917,2]
[328538815,1717507841654,-14.64109261,0.00021917,2]
[328538816,1717507841667,-1066.59282571,0.00021917,2]
[328538817,1717507841679,-507.18717429,0.00021917,2]
[328538818,1717507841689,-491.19453958,0.00021917,2]
[328538824,1717507842180,-8.80546042,0.00021917,2]
[328538825,1717507842190,-500.0,0.00021917,2]
[328538826,1717507842200,-1200.48,0.00021917,2]
[328538827,1717507842209,-500.0,0.00021917,2]
[328538828,1717507842219,-500.0,0.00021917,2]
[328538829,1717507842229,-295.75905682,0.00021917,2]
[328538862,1717507843910,-389.87094318,0.00021917,2]
[328538863,1717507843919,-2430.91,0.00022191,2]
[328538864,1717507843929,-500.0,0.00022191,2]
[328538865,1717507843939,-500.0,0.00022191,2]
[328538866,1717507843949,-767.95,0.00022191,2]
[328538867,1717507843958,-500.0,0.00022191,2]
[328538868,1717507843967,-500.0,0.00022191,2]
[328538869,1717507843976,-2861.53,0.00022191,2]
[328538870,1717507843986,-500.0,0.00022191,2]
[328538871,1717507843996,-652.18,0.00022191,2]
[328538872,1717507844005,-500.0,0.00022191,2]
[328538873,1717507844015,-549.19,0.00022191,2]
[328538874,1717507844024,-500.0,0.00022191,2]
[328538875,1717507844033,-500.0,0.00022191,2]
[328538876,1717507844043,-1573.78,0.00022191,2]
[328538877,1717507844052,-201.30846082,0.00022191,2]
[328538878,1717507844062,-500.0,0.00022191,2]
[328538879,1717507844071,-1200.48,0.00022191,2]
[328538880,1717507844081,-500.0,0.00022191,2]
[328538881,1717507844091,-500.0,0.00022191,2]
[328538882,1717507844101,-685.63,0.00022191,2]
[328538883,1717507844110,-2430.91,0.00022465,2]
[328538884,1717507844120,-500.0,0.00022465,2]
[328538885,1717507844133,-500.0,0.00022465,2]
[328538886,1717507844142,-767.95,0.00022465,2]
[328538887,1717507844152,-500.0,0.00022465,2]
[328538888,1717507844161,-500.0,0.00022465,2]
[328538889,1717507844172,-2861.53,0.00022465,2]
[328538890,1717507844181,-500.0,0.00022465,2]
[328538891,1717507844190,-652.18,0.00022465,2]
[328538892,1717507844199,-500.0,0.00022465,2]
[328538893,1717507844207,-549.19,0.00022465,2]
[328538894,1717507844216,-500.0,0.00022465,2]
[328538895,1717507844225,-72.74973812,0.00022465,2]
[328538907,1717507885374,1500.09697047,9.999e-05,2]
[328538910,1717507991220,3853.69271652,0.00029871,40]
[328538921,1717508391704,154.93802479,9.999e-05,2]
[328538924,1717508804035,936.0,0.00029864,120]
[328538925,1717508840194,-154.93802479,0.00019844,2]
[328538926,1717508840217,-171.527899,0.00019845,2]
[328538927,1717508840240,-24900.0,0.00020102,2]
[328538928,1717508840264,-272.9331019,0.00020144,2]
[328538929,1717508840288,-276.52467599,0.00020365,2]
[328538930,1717508840312,-528.58427928,0.00021041,4]
[328538931,1717508840335,-5229.31513931,0.00021042,2]
[328538932,1717508840359,-214.18143467,0.00021045,2]
[328538933,1717508840382,-498.0,0.00021145,2]
[328538934,1717508840406,-150.0,0.00021145,2]
[328538935,1717508840429,-151.0,0.00021903,5]
[328538936,1717508840452,-500.0,0.00021917,2]
[328538937,1717508840476,-500.0,0.00021917,2]
[328538938,1717508840499,-500.0,0.00021917,2]
[328538939,1717508840520,-500.0,0.00021917,2]
[328538940,1717508840544,-500.0,0.00021917,2]
[328538941,1717508840567,-517.62312298,0.00021917,2]
[328538942,1717508840589,-500.0,0.00021917,2]
[328538943,1717508840611,-500.0,0.00021917,2]
[328538944,1717508840634,-500.0,0.00021917,2]
[328538945,1717508840656,-500.0,0.00021917,2]
[328538946,1717508840678,-500.0,0.00021917,2]
[328538947,1717508840701,-500.0,0.00021917,2]
[328538948,1717508840723,-430.24007195,0.00021917,2]
[328538949,1717508840745,-500.0,0.00021917,2]
[328538950,1717508840767,-500.0,0.00021917,2]
[328538951,1717508840790,-500.0,0.00021917,2]
[328538952,1717508840814,-500.0,0.00021917,2]
[328538953,1717508840837,-500.0,0.00021917,2]
[328538954,1717508841006,-500.0,0.00021917,2]
[328538955,1717508841033,-500.0,0.00021917,2]
[328538956,1717508841053,-500.0,0.00021917,2]
[328538957,1717508841075,-500.0,0.00021917,2]
[328538958,1717508841094,-500.0,0.00021917,2]
[328538959,1717508841114,-500.0,0.00021917,2]
[328538960,1717508841135,-561.71,0.00021917,2]
[328538961,1717508841157,-500.0,0.00021917,2]
[328538962,1717508841176,-500.0,0.00021917,2]
[328538963,1717508841198,-500.0,0.00021917,2]
[328538964,1717508841218,-500.0,0.00021917,2]
[328538965,1717508841241,-2390.97,0.00021917,2]
[328538966,1717508841262,-500.0,0.00021917,2]
[328538967,1717508841283,-747.52,0.00021917,2]
[328538968,1717508841305,-500.0,0.00021917,2]
[328538969,1717508841326,-500.0,0.00021917,2]
[328538970,1717508841348,-528.6,0.00021917,2]
[328538971,1717508841368,-500.0,0.00021917,2]
[328538972,1717508841388,-500.0,0.00021917,2]
[328538973,1717508841410,-500.0,0.00021917,2]
[328538974,1717508841432,-500.0,0.00021917,2]
[328538975,1717508841452,-500.0,0.00021917,2]
[328538976,1717508841474,-500.0,0.00021917,2]
[328538977,1717508841496,-500.0,0.00021917,2]
[328538978,1717508841520,-500.0,0.00021917,2]
[328538979,1717508841542,-2759.66,0.00021917,2]
[328538980,1717508841563,-500.0,0.00021917,2]
[328538981,1717508841586,-500.0,0.00021917,2]
[328538982,1717508841607,-733.68,0.00021917,2]
[328538983,1717508841627,-500.0,0.00021917,2]
[328538984,1717508841647,-589.27,0.00021917,2]
[328538985,1717508841670,-500.0,0.00021917,2]
[328538986,1717508841693,-2266.29,0.00021917,2]
[328538987,1717508841713,-500.0,0.00021917,2]
[328538988,1717508841733,-500.0,0.00021917,2]
[328538989,1717508841753,-500.0,0.00021917,2]
[328538990,1717508841775,-491.28,0.00021917,2]
[328538991,1717508841795,-298.56,0.00021917,2]
[328538992,1717508841815,-500.0,0.00021917,2]
[328538993,1717508841836,-500.0,0.00021917,2]
[328538994,1717508841855,-500.0,0.00021917,2]
[328538995,1717508841877,-500.0,0.00021917,2]
[328538996,1717508841900,-1347.01,0.00021917,2]
[328538997,1717508841920,-500.0,0.00021917,2]
[328538998,1717508841942,-500.0,0.00021917,2]
[328538999,1717508841961,-474.42685414,0.00021917,2]
[328539000,1717508841981,-721.59,0.00021917,2]
[328539001,1717508842003,-592.0,0.00021917,2]
[328539002,1717508842025,-483.28,0.00021917,2]
[328539003,1717508842046,-500.0,0.00021917,2]
[328539004,1717508842067,-591.18250318,0.00021917,2]
[328539005,1717508842088,-500.0,0.00021917,2]
[328539006,1717508842110,-500.0,0.00021917,2]
[328539007,1717508842130,-789.65,0.00021917,2]
[328539008,1717508842151,-500.0,0.00021917,2]
[328539009,1717508842171,-500.0,0.00021917,2]
[328539010,1717508842192,-214.18143463,0.00022167,2]
[328539011,1717508842213,-624.31,0.00022189,2]
[328539012,1717508842233,-500.0,0.0002219,2]
[328539013,1717508842252,-500.0,0.0002219,2]
[328539014,1717508842274,-500.0,0.0002219,2]
[328539015,1717508842293,-169.11403742,0.0002219,2]
[328539016,1717508842313,-500.0,0.0002219,2]
[328539017,1717508842334,-500.0,0.0002219,2]
[328539018,1717508842354,-500.0,0.0002219,2]
[328539019,1717508842374,-500.0,0.0002219,2]
[328539020,1717508842394,-500.0,0.0002219,2]
[328539021,1717508842413,-500.0,0.0002219,2]
[328539022,1717508842434,-500.0,0.0002219,2]
[328539023,1717508842453,-500.0,0.0002219,2]
[328539024,1717508842474,-500.0,0.0002219,2]
[328539025,1717508842495,-500.0,0.0002219,2]
[328539026,1717508842514,-500.0,0.0002219,2]
[328539027,1717508842534,-500.0,0.0002219,2]
[328539028,1717508842554,-500.0,0.0002219,2]
[328539029,1717508842574,-500.0,0.0002219,2]
[328539030,1717508842595,-500.0,0.0002219,2]
[328539031,1717508842616,-500.0,0.0002219,2]
[328539032,1717508842636,-527.35014866,0.0002219,2]
[328539033,1717508842657,-500.0,0.0002219,2]
[328539034,1717508842676,-500.0,0.0002219,2]
[328539035,1717508842698,-500.0,0.0002219,2]
[328539036,1717508842720,-500.0,0.0002219,2]
[328539037,1717508842741,-500.0,0.0002219,2]
[328539038,1717508842762,-500.0,0.0002219,2]
[328539039,1717508842782,-501.93283514,0.0002219,2]
[328539040,1717508842803,-500.0,0.0002219,2]
[328539041,1717508842823,-500.0,0.0002219,2]
[328539042,1717508842845,-500.0,0.0002219,2]